Workbook

Sheet Synthèse du budget mensuel
B1: NOM DE LA SOCIÉTÉ
B2: BUDGET MENSUEL | E2: Date
B4: TOTAUX BUDGÉTAIRES | C4: ESTIMÉ | D4: RÉEL | E4: DIFFÉRENCE
B5: Revenus | C5: =Revenus[[#Totals],[ESTIMÉ]] -> 63,300.00 | D5: =Revenus[[#Totals],[RÉEL]] -> 57,450.00 | E5: =Totaux[[#This Row],[RÉEL]]-Totaux[[#This Row],[ESTIMÉ]] -> -5,850.00
B6: Dépenses | C6: =ChargesExploitation[[#Totals],[ESTIMÉ]]+ChargesPersonnel[[#Totals],[ESTIMÉ]] -> 54,500.00 | D6: =ChargesExploitation[[#Totals],[RÉEL]]+ChargesPersonnel[[#Totals],[RÉEL]] -> 49,630.00 | E6: =Totaux[[#This Row],[ESTIMÉ]]-Totaux[[#This Row],[RÉEL]] -> 4,870.00
B7: Solde (revenus moins dépenses) | C7: =C5-C6 -> 8,800.00 | D7: =D5-D6 -> 7,820.00 | E7: =Totaux[[#Totals],[RÉEL]]-Totaux[[#Totals],[ESTIMÉ]] -> -980.00
B9: Le graphique de vue d’ensemble du budget figure dans cette cellule. Les 5 principaux postes de dépenses de fonctionnement sont mis à jour automatiquement dans le tableau 5PrincipalesDépenses ci-dessous.
B10: QUELS SONT MES 5 PRINCIPAUX POSTES DE DÉPENSES D'EXPLOITATION?
B11: DÉPENSES | C11: MONTANT | D11: % DES DÉPENSES | E11: 15 % DE RÉDUCTION
B12: =INDEX(ChargesExploitation[],MATCH(_fivePrincipalesDépenses[[#This Row],[MONTANT]],ChargesExploitation[5 MONTANTS PRINCIPAUX],0),1) -> Entretien et réparations | C12: =LARGE(ChargesExploitation[5 MONTANTS PRINCIPAUX],1) -> 4,600.00 | D12: =_fivePrincipalesDépenses[[#This Row],[MONTANT]]/$D$6 -> 9.3% | E12: =_fivePrincipalesDépenses[[#This Row],[MONTANT]]*0.15 -> 690.00
B13: =INDEX(ChargesExploitation[],MATCH(_fivePrincipalesDépenses[[#This Row],[MONTANT]],ChargesExploitation[5 MONTANTS PRINCIPAUX],0),1) -> Fournitures | C13: =LARGE(ChargesExploitation[5 MONTANTS PRINCIPAUX],2) -> 4,500.00 | D13: =_fivePrincipalesDépenses[[#This Row],[MONTANT]]/$D$6 -> 9.1% | E13: =_fivePrincipalesDépenses[[#This Row],[MONTANT]]*0.15 -> 675.00
B14: =INDEX(ChargesExploitation[],MATCH(_fivePrincipalesDépenses[[#This Row],[MONTANT]],ChargesExploitation[5 MONTANTS PRINCIPAUX],0),1) -> Location ou prêt immobilier | C14: =LARGE(ChargesExploitation[5 MONTANTS PRINCIPAUX],3) -> 4,500.00 | D14: =_fivePrincipalesDépenses[[#This Row],[MONTANT]]/$D$6 -> 9.1% | E14: =_fivePrincipalesDépenses[[#This Row],[MONTANT]]*0.15 -> 675.00
B15: =INDEX(ChargesExploitation[],MATCH(_fivePrincipalesDépenses[[#This Row],[MONTANT]],ChargesExploitation[5 MONTANTS PRINCIPAUX],0),1) -> Taxes | C15: =LARGE(ChargesExploitation[5 MONTANTS PRINCIPAUX],4) -> 3,200.00 | D15: =_fivePrincipalesDépenses[[#This Row],[MONTANT]]/$D$6 -> 6.4% | E15: =_fivePrincipalesDépenses[[#This Row],[MONTANT]]*0.15 -> 480.00
B16: =INDEX(ChargesExploitation[],MATCH(_fivePrincipalesDépenses[[#This Row],[MONTANT]],ChargesExploitation[5 MONTANTS PRINCIPAUX],0),1) -> Publicité | C16: =LARGE(ChargesExploitation[5 MONTANTS PRINCIPAUX],5) -> 2,500.00 | D16: =_fivePrincipalesDépenses[[#This Row],[MONTANT]]/$D$6 -> 5.0% | E16: =_fivePrincipalesDépenses[[#This Row],[MONTANT]]*0.15 -> 375.00
B17: Total | C17: =SUBTOTAL(109,_fivePrincipalesDépenses[MONTANT]) -> 19,300.00 | D17: =SUBTOTAL(109,_fivePrincipalesDépenses[% DES DÉPENSES]) -> 38.9% | E17: =SUBTOTAL(109,_fivePrincipalesDépenses[15 % DE RÉDUCTION]) -> 2,895.00

Sheet Revenus
B1: =NOM_SOCIÉTÉ -> NOM DE LA SOCIÉTÉ
B2: =Titre_BUDGET -> BUDGET MENSUEL
B4: REVENUS | C4: ESTIMÉ | D4: RÉEL | E4: 5 MONTANTS PRINCIPAUX | F4: DIFFÉRENCE
B5: Ventes nettes | C5: 60,000.00 | D5: 54,000.00 | E5: =Revenus[[#This Row],[RÉEL]]+(10^-6)*ROW(Revenus[[#This Row],[RÉEL]]) -> 54,000.00 | F5: =Revenus[[#This Row],[RÉEL]]-Revenus[[#This Row],[ESTIMÉ]] -> -6,000.00
B6: Revenu d’intérêts | C6: 3,000.00 | D6: 3,000.00 | E6: =Revenus[[#This Row],[RÉEL]]+(10^-6)*ROW(Revenus[[#This Row],[RÉEL]]) -> 3,000.00 | F6: =Revenus[[#This Row],[RÉEL]]-Revenus[[#This Row],[ESTIMÉ]] -> 0.00
B7: Ventes de biens (gain/perte) | C7: 300.00 | D7: 450.00 | E7: =Revenus[[#This Row],[RÉEL]]+(10^-6)*ROW(Revenus[[#This Row],[RÉEL]]) -> 450.00 | F7: =Revenus[[#This Row],[RÉEL]]-Revenus[[#This Row],[ESTIMÉ]] -> 150.00
B8: Revenu total | C8: =SUBTOTAL(109,Revenus[ESTIMÉ]) -> 63,300.00 | D8: =SUBTOTAL(109,Revenus[RÉEL]) -> 57,450.00 | F8: =SUBTOTAL(109,Revenus[DIFFÉRENCE]) -> -5,850.00

Sheet Charges de personnel
B1: =NOM_SOCIÉTÉ -> NOM DE LA SOCIÉTÉ
B2: =Titre_BUDGET -> BUDGET MENSUEL
B4: CHARGES DE PERSONNEL | C4: ESTIMÉ | D4: RÉEL | E4: 5 MONTANTS PRINCIPAUX | F4: DIFFÉRENCE
B5: Salaire | C5: 9,500.00 | D5: 9,600.00 | E5: =ChargesPersonnel[[#This Row],[RÉEL]]+(10^-6)*ROW(ChargesPersonnel[[#This Row],[RÉEL]]) -> 9,600.00 | F5: =ChargesPersonnel[[#This Row],[ESTIMÉ]]-ChargesPersonnel[[#This Row],[RÉEL]] -> -100.00
B6: Avantages d’employé | C6: 4,000.00 | D6: 0.00 | E6: =ChargesPersonnel[[#This Row],[RÉEL]]+(10^-6)*ROW(ChargesPersonnel[[#This Row],[RÉEL]]) -> 0.00 | F6: =ChargesPersonnel[[#This Row],[ESTIMÉ]]-ChargesPersonnel[[#This Row],[RÉEL]] -> 4,000.00
B7: Commission | C7: 5,000.00 | D7: 4,500.00 | E7: =ChargesPersonnel[[#This Row],[RÉEL]]+(10^-6)*ROW(ChargesPersonnel[[#This Row],[RÉEL]]) -> 4,500.00 | F7: =ChargesPersonnel[[#This Row],[ESTIMÉ]]-ChargesPersonnel[[#This Row],[RÉEL]] -> 500.00
B8: Total des charges de personnel | C8: =SUBTOTAL(109,ChargesPersonnel[ESTIMÉ]) -> 18,500.00 | D8: =SUBTOTAL(109,ChargesPersonnel[RÉEL]) -> 14,100.00 | F8: =SUBTOTAL(109,ChargesPersonnel[DIFFÉRENCE]) -> 4,400.00

Sheet Charges d’exploitation
B1: =NOM_SOCIÉTÉ -> NOM DE LA SOCIÉTÉ
B2: =Titre_BUDGET -> BUDGET MENSUEL
B4: CHARGES D’EXPLOITATION | C4: ESTIMÉ | D4: RÉEL | E4: 5 MONTANTS PRINCIPAUX | F4: DIFFÉRENCE
B5: Publicité | C5: 3,000.00 | D5: 2,500.00 | E5: =ChargesExploitation[[#This Row],[RÉEL]]+(10^-6)*ROW(ChargesExploitation[[#This Row],[RÉEL]]) -> 2,500.00 | F5: =ChargesExploitation[[#This Row],[ESTIMÉ]]-ChargesExploitation[[#This Row],[RÉEL]] -> 500.00
B6: Créance irrécouvrables | C6: 2,000.00 | D6: 2,000.00 | E6: =ChargesExploitation[[#This Row],[RÉEL]]+(10^-6)*ROW(ChargesExploitation[[#This Row],[RÉEL]]) -> 2,000.00 | F6: =ChargesExploitation[[#This Row],[ESTIMÉ]]-ChargesExploitation[[#This Row],[RÉEL]] -> 0.00
B7: Escomptes de règlement | C7: 1,500.00 | D7: 2,175.00 | E7: =ChargesExploitation[[#This Row],[RÉEL]]+(10^-6)*ROW(ChargesExploitation[[#This Row],[RÉEL]]) -> 2,175.00 | F7: =ChargesExploitation[[#This Row],[ESTIMÉ]]-ChargesExploitation[[#This Row],[RÉEL]] -> -675.00
B8: Frais de livraison | C8: 2,000.00 | D8: 1,500.00 | E8: =ChargesExploitation[[#This Row],[RÉEL]]+(10^-6)*ROW(ChargesExploitation[[#This Row],[RÉEL]]) -> 1,500.00 | F8: =ChargesExploitation[[#This Row],[ESTIMÉ]]-ChargesExploitation[[#This Row],[RÉEL]] -> 500.00
B9: Amortissement | C9: 1,000.00 | D9: 1,000.00 | E9: =ChargesExploitation[[#This Row],[RÉEL]]+(10^-6)*ROW(ChargesExploitation[[#This Row],[RÉEL]]) -> 1,000.00 | F9: =ChargesExploitation[[#This Row],[ESTIMÉ]]-ChargesExploitation[[#This Row],[RÉEL]] -> 0.00
B10: Cotisations et abonnements | C10: 500.00 | D10: 525.00 | E10: =ChargesExploitation[[#This Row],[RÉEL]]+(10^-6)*ROW(ChargesExploitation[[#This Row],[RÉEL]]) -> 525.00 | F10: =ChargesExploitation[[#This Row],[ESTIMÉ]]-ChargesExploitation[[#This Row],[RÉEL]] -> -25.00
B11: Assurance | C11: 1,300.00 | D11: 1,275.00 | E11: =ChargesExploitation[[#This Row],[RÉEL]]+(10^-6)*ROW(ChargesExploitation[[#This Row],[RÉEL]]) -> 1,275.00 | F11: =ChargesExploitation[[#This Row],[ESTIMÉ]]-ChargesExploitation[[#This Row],[RÉEL]] -> 25.00
B12: Intérêts | C12: 2,000.00 | D12: 2,200.00 | E12: =ChargesExploitation[[#This Row],[RÉEL]]+(10^-6)*ROW(ChargesExploitation[[#This Row],[RÉEL]]) -> 2,200.00 | F12: =ChargesExploitation[[#This Row],[ESTIMÉ]]-ChargesExploitation[[#This Row],[RÉEL]] -> -200.00
B13: Frais juridiques et d’audit | C13: 1,000.00 | D13: 800.00 | E13: =ChargesExploitation[[#This Row],[RÉEL]]+(10^-6)*ROW(ChargesExploitation[[#This Row],[RÉEL]]) -> 800.00 | F13: =ChargesExploitation[[#This Row],[ESTIMÉ]]-ChargesExploitation[[#This Row],[RÉEL]] -> 200.00
B14: Entretien et réparations | C14: 4,500.00 | D14: 4,600.00 | E14: =ChargesExploitation[[#This Row],[RÉEL]]+(10^-6)*ROW(ChargesExploitation[[#This Row],[RÉEL]]) -> 4,600.00 | F14: =ChargesExploitation[[#This Row],[ESTIMÉ]]-ChargesExploitation[[#This Row],[RÉEL]] -> -100.00
B15: Fournitures de bureau | C15: 800.00 | D15: 750.00 | E15: =ChargesExploitation[[#This Row],[RÉEL]]+(10^-6)*ROW(ChargesExploitation[[#This Row],[RÉEL]]) -> 750.00 | F15: =ChargesExploitation[[#This Row],[ESTIMÉ]]-ChargesExploitation[[#This Row],[RÉEL]] -> 50.00
B16: Affranchissement | C16: 400.00 | D16: 350.00 | E16: =ChargesExploitation[[#This Row],[RÉEL]]+(10^-6)*ROW(ChargesExploitation[[#This Row],[RÉEL]]) -> 350.00 | F16: =ChargesExploitation[[#This Row],[ESTIMÉ]]-ChargesExploitation[[#This Row],[RÉEL]] -> 50.00
B17: Location ou prêt immobilier | C17: 4,100.00 | D17: 4,500.00 | E17: =ChargesExploitation[[#This Row],[RÉEL]]+(10^-6)*ROW(ChargesExploitation[[#This Row],[RÉEL]]) -> 4,500.00 | F17: =ChargesExploitation[[#This Row],[ESTIMÉ]]-ChargesExploitation[[#This Row],[RÉEL]] -> -400.00
B18: Frais de ventes | C18: 350.00 | D18: 400.00 | E18: =ChargesExploitation[[#This Row],[RÉEL]]+(10^-6)*ROW(ChargesExploitation[[#This Row],[RÉEL]]) -> 400.00 | F18: =ChargesExploitation[[#This Row],[ESTIMÉ]]-ChargesExploitation[[#This Row],[RÉEL]] -> -50.00
B19: Expédition et stockage | C19: 900.00 | D19: 840.00 | E19: =ChargesExploitation[[#This Row],[RÉEL]]+(10^-6)*ROW(ChargesExploitation[[#This Row],[RÉEL]]) -> 840.00 | F19: =ChargesExploitation[[#This Row],[ESTIMÉ]]-ChargesExploitation[[#This Row],[RÉEL]] -> 60.00
B20: Fournitures | C20: 5,000.00 | D20: 4,500.00 | E20: =ChargesExploitation[[#This Row],[RÉEL]]+(10^-6)*ROW(ChargesExploitation[[#This Row],[RÉEL]]) -> 4,500.00 | F20: =ChargesExploitation[[#This Row],[ESTIMÉ]]-ChargesExploitation[[#This Row],[RÉEL]] -> 500.00
B21: Taxes | C21: 3,000.00 | D21: 3,200.00 | E21: =ChargesExploitation[[#This Row],[RÉEL]]+(10^-6)*ROW(ChargesExploitation[[#This Row],[RÉEL]]) -> 3,200.00 | F21: =ChargesExploitation[[#This Row],[ESTIMÉ]]-ChargesExploitation[[#This Row],[RÉEL]] -> -200.00
B22: Téléphone | C22: 250.00 | D22: 280.00 | E22: =ChargesExploitation[[#This Row],[RÉEL]]+(10^-6)*ROW(ChargesExploitation[[#This Row],[RÉEL]]) -> 280.00 | F22: =ChargesExploitation[[#This Row],[ESTIMÉ]]-ChargesExploitation[[#This Row],[RÉEL]] -> -30.00
B23: Eau, électricité et gaz | C23: 1,400.00 | D23: 1,385.00 | E23: =ChargesExploitation[[#This Row],[RÉEL]]+(10^-6)*ROW(ChargesExploitation[[#This Row],[RÉEL]]) -> 1,385.00 | F23: =ChargesExploitation[[#This Row],[ESTIMÉ]]-ChargesExploitation[[#This Row],[RÉEL]] -> 15.00
B24: Autres | C24: 1,000.00 | D24: 750.00 | E24: =ChargesExploitation[[#This Row],[RÉEL]]+(10^-6)*ROW(ChargesExploitation[[#This Row],[RÉEL]]) -> 750.00 | F24: =ChargesExploitation[[#This Row],[ESTIMÉ]]-ChargesExploitation[[#This Row],[RÉEL]] -> 250.00
B25: Total des charges d’exploitation | C25: =SUBTOTAL(109,ChargesExploitation[ESTIMÉ]) -> 36,000.00 | D25: =SUBTOTAL(109,ChargesExploitation[RÉEL]) -> 35,530.00 | F25: =SUBTOTAL(109,ChargesExploitation[DIFFÉRENCE]) -> 470.00
